fUSD/lending_fUSD_20240227
["ID","MTS","AMOUNT","RATE_DAILY","PERIOD"]
[315485546,1709074273125,-759.17,0.00023898,2]
[315485547,1709074273141,-500.0,0.00023898,2]
[315485548,1709074273157,-500.0,0.00023898,2]
[315485549,1709074273174,-500.0,0.00023898,2]
[315485550,1709074273190,-500.0,0.00023898,2]
[315485551,1709074273206,-500.0,0.00023898,2]
[315485552,1709074273222,-648.19,0.00023898,2]
[315485553,1709074273237,-2084.99,0.00023898,2]
[315485554,1709074273252,-779.48,0.00023898,2]
[315485555,1709074273267,-2000.09,0.00023898,2]
[315485556,1709074273281,-500.0,0.00023898,2]
[315485557,1709074273296,-500.0,0.00023898,2]
[315485558,1709074273310,-1745.15,0.00023898,2]
[315485559,1709074273325,-500.0,0.00023898,2]
[315485560,1709074273343,-577.26,0.00023899,2]
[315485561,1709074273358,-500.0,0.00023899,2]
[315485562,1709074273373,-500.0,0.00023899,2]
[315485563,1709074273388,-500.0,0.00023899,2]
[315485564,1709074273404,-2597.85,0.00023899,2]
[315485565,1709074273420,-873.51,0.00023899,2]
[315485566,1709074273436,-393.19333112,0.00023899,2]
[315485567,1709074273451,-500.0,0.00023899,2]
[315485568,1709074273466,-698.92,0.00023899,2]
[315485569,1709074273482,-1040.0,0.00023899,2]
[315485570,1709074273499,-7794.5,0.00023899,2]
[315485571,1709074273514,-953.45,0.00023899,2]
[315485572,1709074273529,-157.24009996,0.00023899,2]
[315485573,1709074273545,-5112.32061983,0.000239,2]
[315485574,1709074273560,-160.0,0.000239,2]
[315485575,1709074273575,-16000.0,0.000239,2]
[315485576,1709074273589,-500.0,0.000239,2]
[315485577,1709074273605,-5800.0,0.000239,2]
[315485578,1709074273620,-172.60002999,0.000239,2]
[315485579,1709074273635,-1028.053581,0.000239,3]
[315485580,1709074273793,-153.03112708,0.000239,2]
[315485581,1709074273803,-5533.90446695,0.000239,2]
[315485582,1709074273813,-1287.90672668,0.000239,2]
[315485583,1709074273823,-3000.0,0.000239,2]
[315485584,1709074273834,-2806.70085127,0.000239,2]
[315485585,1709074273845,-837.96052026,0.000239,2]
[315485586,1709074273855,-317.34815697,0.000239,2]
[315485587,1709074273865,-1950.0,0.000239,2]
[315485588,1709074273875,-7299.52635001,0.000239,2]
[315485589,1709074273885,-530.94192446,0.000239,2]
[315485590,1709074273894,-512.13271809,0.000239,2]
[315485591,1709074273904,-183.3412383,0.000239,2]
[315485592,1709074273915,-3000.0,0.0002391,2]
[315485593,1709074273924,-160.9,0.0002391,2]
[315485594,1709074273934,-567.572442,0.0002392,2]
[315485595,1709074273943,-161.354156,0.0002392,2]
[315485596,1709074273954,-382.716996,0.0002392,2]
[315485597,1709074273964,-180.906795,0.0002392,2]
[315485598,1709074273974,-155.226254,0.0002392,2]
[315485599,1709074273984,-622.993439,0.0002392,2]
[315485600,1709074273994,-461.358789,0.0002392,2]
[315485601,1709074274004,-324.618168,0.0002392,2]
[315485602,1709074274014,-366.689353,0.0002392,2]
[315485603,1709074274023,-388.402767,0.0002392,2]
[315485604,1709074274033,-3000.0,0.0002392,2]
[315485605,1709074274043,-3000.0,0.0002393,2]
[315485606,1709074274054,-310.80241579,0.00023936,2]
[315485607,1709074274064,-3000.0,0.0002394,2]
[315485608,1709074274073,-156.01,0.00023949,2]
[315485609,1709074274083,-3428.586281,0.0002395,2]
[315485610,1709074274094,-151.0,0.00023965,2]
[315485611,1709074274104,-400.0,0.0002397,2]
[315485612,1709074274113,-503.14249672,0.0002397,2]
[315485613,1709074274125,-500.0,0.0002397,2]
[315485614,1709074274134,-500.0,0.0002397,2]
[315485615,1709074274144,-500.0,0.0002397,2]
[315485616,1709074274157,-500.0,0.0002397,2]
[315485617,1709074274168,-602.42610439,0.0002397,2]
[315485618,1709074274178,-1030.00034581,0.0002398,3]
[315485619,1709074274191,-5314.1059938,0.00023984,2]
[315485620,1709074274200,-1897.8086073,0.00023984,2]
[315485621,1709074274210,-3378.1264803,0.00023984,2]
[315485622,1709074274221,-30666.8941067,0.00023984,2]
[315485623,1709074274232,-605.9717921,0.00023984,2]
[315485624,1709074274242,-197.44456234,0.00023988,2]
[315485625,1709074274253,-500.0,0.00023995,2]
[315485626,1709074274277,-682.5,0.00023996,2]
[315485627,1709074274288,-1106.99,0.00023996,2]
[315485628,1709074274299,-500.0,0.00023996,2]
[315485629,1709074274309,-500.0,0.00023996,2]
[315485630,1709074274319,-500.0,0.00023996,2]
[315485631,1709074274330,-500.0,0.00023996,2]
[315485632,1709074274340,-500.0,0.00023996,2]
[315485633,1709074274350,-1160.09,0.00023996,2]
[315485634,1709074274360,-500.0,0.00023996,2]
[315485635,1709074274371,-500.0,0.00023996,2]
[315485636,1709074274380,-402.54337285,0.00023996,2]
[315485637,1709074274390,-513.14,0.00023996,2]
[315485638,1709074274401,-500.0,0.00023996,2]
[315485639,1709074274411,-500.0,0.00023996,2]
[315485640,1709074274422,-500.0,0.00023996,2]
[315485641,1709074274433,-500.0,0.00023996,2]
[315485642,1709074274443,-500.0,0.00023996,2]
[315485643,1709074274454,-1233.4,0.00023996,2]
[315485644,1709074274465,-500.0,0.00023996,2]
[315485645,1709074274475,-500.0,0.00023996,2]
[315485646,1709074274485,-560.51,0.00023996,2]
[315485647,1709074274495,-500.0,0.00023996,2]
[315485648,1709074274505,-500.0,0.00023996,2]
[315485649,1709074274516,-615.99,0.00023996,2]
[315485650,1709074274525,-500.0,0.00023996,2]
[315485651,1709074274535,-500.0,0.00023996,2]
[315485652,1709074274545,-500.0,0.00023996,2]
[315485653,1709074274554,-881.46,0.00023996,2]
[315485654,1709074274564,-1068.05,0.00023996,2]
[315485655,1709074274574,-500.0,0.00023996,2]
[315485656,1709074274583,-600.63,0.00023996,2]
[315485657,1709074274592,-500.0,0.00023996,2]
[315485658,1709074274602,-500.0,0.00023996,2]
[315485659,1709074274614,-500.0,0.00023996,2]
[315485660,1709074274624,-500.0,0.00023996,2]
[315485661,1709074274633,-1284.24,0.00023996,2]
[315485662,1709074274643,-500.0,0.00023996,2]
[315485663,1709074274654,-500.0,0.00023996,2]
[315485664,1709074274665,-500.0,0.00023996,2]
[315485665,1709074274675,-500.0,0.00023996,2]
[315485666,1709074274684,-500.0,0.00023996,2]
[315485667,1709074274693,-500.0,0.00023996,2]
[315485668,1709074274704,-500.0,0.00023996,2]
[315485669,1709074274713,-500.0,0.00023996,2]
[315485670,1709074274723,-500.0,0.00023996,2]
[315485671,1709074274733,-500.0,0.00023996,2]
[315485672,1709074274742,-464.93484092,0.00023996,2]
[315485673,1709074274752,-500.0,0.00023996,2]
[315485674,1709074274763,-500.0,0.00023996,2]
[315485675,1709074274772,-500.0,0.00023996,2]
[315485676,1709074274783,-500.0,0.00023996,2]
[315485677,1709074274793,-500.0,0.00023996,2]
[315485678,1709074274804,-500.0,0.00023996,2]
[315485679,1709074274814,-858.44,0.00023996,2]
[315485680,1709074274824,-500.0,0.00023996,2]
[315485681,1709074274834,-500.0,0.00023996,2]
[315485682,1709074274845,-268.86,0.00023996,2]
[315485683,1709074274855,-500.0,0.00023996,2]
[315485684,1709074274866,-500.0,0.00023996,2]
[315485685,1709074274876,-1311.29,0.00023996,2]
[315485686,1709074274886,-500.0,0.00023996,2]
[315485687,1709074274900,-500.0,0.00023996,2]
[315485688,1709074274910,-500.0,0.00023996,2]
[315485689,1709074274924,-500.0,0.00023996,2]
[315485690,1709074274935,-500.0,0.00023996,2]
[315485691,1709074274944,-500.0,0.00023996,2]
[315485692,1709074274966,-500.0,0.00023996,2]
[315485693,1709074274977,-514.32,0.00023996,2]
[315485694,1709074275000,-500.0,0.00023996,2]
[315485695,1709074275010,-500.0,0.00023997,2]
[315485696,1709074275024,-500.0,0.00023997,2]
[315485697,1709074275038,-500.0,0.00023997,2]
[315485698,1709074275052,-500.0,0.00023997,2]
[315485699,1709074275072,-186.64085567,0.00023997,2]
[315485700,1709074275084,-366.67954244,0.00023997,2]
[315485701,1709074275094,-500.0,0.00023997,2]
[315485702,1709074275103,-500.0,0.00023997,2]
[315485703,1709074275123,-500.0,0.00023997,2]
[315485704,1709074275133,-500.0,0.00023997,2]
[315485705,1709074275144,-645.91,0.00023997,2]
[315485706,1709074275155,-1171.06,0.00023997,2]
[315485707,1709074275187,-301.4,0.00023997,2]
[315485708,1709074275226,-500.0,0.00023997,2]
[315485709,1709074275247,-500.0,0.00023997,2]
[315485710,1709074275261,-644.54,0.00023997,2]
[315485711,1709074275270,-500.0,0.00023997,2]
[315485712,1709074275287,-628.17,0.00023997,2]
[315485713,1709074275308,-500.0,0.00023997,2]
[315485714,1709074275327,-382.33467243,0.00023997,2]
[315485715,1709074275343,-1056.41,0.00023997,2]
[315485716,1709074275353,-500.0,0.00023997,2]
[315485717,1709074275384,-500.0,0.00023997,2]
[315485718,1709074275397,-500.0,0.00023997,2]
[315485719,1709074275411,-217.3782616,0.00023997,2]
[315485720,1709074275423,-500.0,0.00023997,2]
[315485721,1709074275435,-500.0,0.00023997,2]
[315485722,1709074275444,-535.46,0.00023997,2]
[315485723,1709074275455,-500.0,0.00023997,2]
[315485724,1709074275464,-500.0,0.00023997,2]
[315485725,1709074275474,-2712.31,0.00023997,2]
[315485726,1709074275484,-759.17,0.00023997,2]
[315485727,1709074275494,-577.26,0.00023997,2]
[315485728,1709074275504,-500.0,0.00023997,2]
[315485729,1709074275513,-500.0,0.00023997,2]
[315485730,1709074275523,-500.0,0.00023997,2]
[315485731,1709074275533,-500.0,0.00023997,2]
[315485732,1709074275543,-500.0,0.00023997,2]
[315485733,1709074275552,-500.0,0.00023997,2]
[315485734,1709074275562,-500.0,0.00023997,2]
[315485735,1709074275571,-500.0,0.00023997,2]
[315485736,1709074275581,-648.19,0.00023997,2]
[315485737,1709074275591,-2084.99,0.00023997,2]
[315485738,1709074275601,-435.42738664,0.00023997,2]
[315485739,1709074275615,-500.0,0.00023997,2]
[315485740,1709074275625,-2597.85,0.00023997,2]
[315485741,1709074275634,-779.48,0.00023997,2]
[315485742,1709074275644,-873.51,0.00023997,2]
[315485743,1709074275654,-2000.09,0.00023997,2]
[315485744,1709074275665,-500.0,0.00023997,2]
[315485745,1709074275674,-698.92,0.00023997,2]
[315485746,1709074275684,-500.0,0.00023997,2]
[315485747,1709074275695,-1040.0,0.00023997,2]
[315485748,1709074275705,-7794.5,0.00023997,2]
[315485749,1709074275714,-953.45,0.00023997,2]
[315485750,1709074275724,-500.0,0.00023997,2]
[315485751,1709074275734,-1745.15,0.00023997,2]
[315485752,1709074275743,-500.0,0.00023997,2]
[315485753,1709074275754,-500.0,0.00023997,2]
[315485754,1709074275763,-151.022807,0.00023998,3]
[315485755,1709074275908,-151.022807,0.00023998,3]
[315485756,1709074275918,-151.021904,0.00023998,3]
[315485757,1709074275928,-946.74313476,0.00023998,2]
[315485758,1709074275938,-500.0,0.00023998,2]
[315485759,1709074275948,-500.0,0.00023998,2]
[315485760,1709074275957,-342.61198265,0.00023998,2]
[315485761,1709074275966,-500.0,0.00023998,2]
[315485762,1709074275975,-504.48690407,0.00023998,2]
[315485763,1709074275985,-500.0,0.00023998,2]
[315485764,1709074275994,-500.0,0.00023998,2]
[315485765,1709074276005,-436.14973981,0.00023998,2]
[315485766,1709074276015,-500.0,0.00023998,2]
[315485767,1709074276025,-620.6,0.00023998,2]
[315485768,1709074276034,-500.0,0.00023998,2]
[315485769,1709074276043,-648.94994627,0.00023998,2]
[315485770,1709074276053,-500.0,0.00023998,2]
[315485771,1709074276064,-500.0,0.00023998,2]
[315485772,1709074276073,-500.0,0.00023998,2]
[315485773,1709074276084,-500.0,0.00023998,2]
[315485774,1709074276093,-500.0,0.00023998,2]
[315485775,1709074276102,-500.0,0.00023998,2]
[315485776,1709074276112,-500.0,0.00023998,2]
[315485777,1709074276121,-500.0,0.00023998,2]
[315485778,1709074276131,-500.0,0.00023998,2]
[315485779,1709074276141,-645.91,0.00023998,2]
[315485780,1709074276151,-645.91,0.00023998,2]
[315485781,1709074276162,-645.91,0.00023998,2]
[315485782,1709074276173,-1171.06,0.00023998,2]
[315485783,1709074276182,-1171.06,0.00023998,2]
[315485784,1709074276192,-1171.06,0.00023998,2]
[315485785,1709074276201,-500.0,0.00023998,2]
[315485786,1709074276210,-500.0,0.00023998,2]
[315485787,1709074276220,-500.0,0.00023998,2]
[315485788,1709074276229,-273.16784744,0.00023998,2]
[315485789,1709074276239,-290.37,0.00023998,2]
[315485790,1709074276249,-644.54,0.00023998,2]
[315485791,1709074276258,-644.54,0.00023998,2]
[315485792,1709074276267,-500.0,0.00023998,2]
[315485793,1709074276277,-644.54,0.00023998,2]
[315485794,1709074276287,-500.0,0.00023998,2]
[315485795,1709074276296,-500.0,0.00023998,2]
[315485796,1709074276304,-628.17,0.00023998,2]
[315485797,1709074276313,-628.17,0.00023998,2]
[315485798,1709074276323,-628.17,0.00023998,2]
[315485799,1709074276332,-500.0,0.00023998,2]
[315485800,1709074276341,-500.0,0.00023998,2]
[315485801,1709074276349,-500.0,0.00023998,2]
[315485802,1709074276359,-1056.41,0.00023998,2]
[315485803,1709074276367,-1056.41,0.00023998,2]
[315485804,1709074276377,-1056.41,0.00023998,2]
[315485805,1709074276385,-500.0,0.00023998,2]
[315485806,1709074276394,-500.0,0.00023998,2]
[315485807,1709074276403,-540.10514382,0.00023998,2]
[315485808,1709074276413,-500.0,0.00023998,2]
[315485809,1709074276423,-682.5,0.00023998,2]
[315485810,1709074276433,-682.5,0.00023998,2]
[315485811,1709074276443,-682.5,0.00023998,2]
[315485812,1709074276452,-682.5,0.00023998,2]
[315485813,1709074276461,-500.0,0.00023998,2]
[315485814,1709074276471,-500.0,0.00023998,2]
[315485815,1709074276480,-500.0,0.00023998,2]
[315485816,1709074276490,-1106.99,0.00023998,2]
[315485817,1709074276499,-1106.99,0.00023998,2]
[315485818,1709074276509,-1106.99,0.00023998,2]
[315485819,1709074276519,-1106.99,0.00023998,2]
[315485820,1709074276528,-1106.99,0.00023998,2]
[315485821,1709074276537,-500.0,0.00023998,2]
[315485822,1709074276547,-500.0,0.00023998,2]
[315485823,1709074276557,-500.0,0.00023998,2]
[315485824,1709074276567,-500.0,0.00023998,2]
[315485825,1709074276580,-500.0,0.00023998,2]
[315485826,1709074276591,-500.0,0.00023998,2]
[315485827,1709074276601,-500.0,0.00023998,2]
[315485828,1709074276611,-500.0,0.00023998,2]
[315485829,1709074276624,-500.0,0.00023998,2]
[315485830,1709074276634,-500.0,0.00023998,2]
[315485831,1709074276644,-500.0,0.00023998,2]
[315485832,1709074276653,-500.0,0.00023998,2]
[315485833,1709074276665,-500.0,0.00023998,2]
[315485834,1709074276676,-500.0,0.00023998,2]
[315485835,1709074276685,-500.0,0.00023998,2]
[315485836,1709074276696,-1160.09,0.00023998,2]
[315485837,1709074276706,-1160.09,0.00023998,2]
[315485838,1709074276715,-1160.09,0.00023998,2]
[315485839,1709074276726,-1160.09,0.00023998,2]
[315485840,1709074276735,-500.0,0.00023998,2]
[315485841,1709074276746,-1160.09,0.00023998,2]
[315485842,1709074276756,-590.57,0.00023998,2]
[315485843,1709074276765,-554.39,0.00023998,2]
[315485844,1709074276774,-513.14,0.00023998,2]
[315485845,1709074276784,-513.14,0.00023998,2]
[315485846,1709074276794,-513.14,0.00023998,2]
[315485847,1709074276803,-500.0,0.00023998,2]
[315485848,1709074276813,-513.14,0.00023998,2]
[315485849,1709074276823,-500.0,0.00023998,2]
[315485850,1709074276833,-500.0,0.00023998,2]
[315485851,1709074276842,-500.0,0.00023998,2]
[315485852,1709074276852,-500.0,0.00023998,2]
[315485853,1709074276862,-500.0,0.00023998,2]
[315485854,1709074276872,-500.0,0.00023998,2]
[315485855,1709074276882,-555.58314771,0.00023998,2]
[315485856,1709074276892,-500.0,0.00023998,2]
[315485857,1709074276902,-535.46,0.00023998,2]
[315485858,1709074276911,-535.46,0.00023998,2]
[315485859,1709074276922,-535.46,0.00023998,2]
[315485860,1709074276931,-535.46,0.00023998,2]
[315485861,1709074276942,-500.0,0.00023998,2]
[315485862,1709074276951,-500.0,0.00023998,2]
[315485863,1709074276961,-500.0,0.00023998,2]
[315485864,1709074276971,-500.0,0.00023998,2]
[315485865,1709074276981,-1233.4,0.00023998,2]
[315485866,1709074276991,-500.0,0.00023998,2]
[315485867,1709074277001,-1233.4,0.00023998,2]
[315485868,1709074277010,-1233.4,0.00023998,2]
[315485869,1709074277020,-1233.4,0.00023998,2]
[315485870,1709074277030,-433.50763702,0.00023998,2]
[315485871,1709074277040,-500.0,0.00023998,2]
[315485872,1709074277050,-500.0,0.00023998,2]
[315485873,1709074277060,-500.0,0.00023998,2]
[315485874,1709074277070,-500.0,0.00023998,2]
[315485875,1709074277079,-2712.31,0.00023998,2]
[315485876,1709074277088,-2712.31,0.00023998,2]
[315485877,1709074277098,-2712.31,0.00023998,2]
[315485878,1709074277107,-2712.31,0.00023998,2]
[315485879,1709074277117,-500.0,0.00023998,2]
[315485880,1709074277126,-560.51,0.00023998,2]
[315485881,1709074277136,-560.51,0.00023998,2]
[315485882,1709074277146,-560.51,0.00023998,2]
[315485883,1709074277155,-560.51,0.00023998,2]
[315485884,1709074277165,-500.0,0.00023998,2]
[315485885,1709074277175,-759.17,0.00023998,2]
[315485886,1709074277185,-759.17,0.00023998,2]
[315485887,1709074277195,-759.17,0.00023998,2]
[315485888,1709074277205,-759.17,0.00023998,2]
[315485889,1709074277214,-500.0,0.00023998,2]
[315485890,1709074277224,-500.0,0.00023998,2]
[315485891,1709074277233,-500.0,0.00023998,2]
[315485892,1709074277243,-206.23092948,0.00023998,2]
[315485893,1709074277252,-615.99,0.00023998,2]
[315485894,1709074277262,-577.26,0.00023998,2]
[315485895,1709074277272,-500.0,0.00023998,2]
[315485896,1709074277282,-615.99,0.00023998,2]
[315485897,1709074277291,-577.26,0.00023998,2]
[315485898,1709074277301,-615.99,0.00023998,2]
[315485899,1709074277310,-577.26,0.00023998,2]
[315485900,1709074277320,-615.99,0.00023998,2]
[315485901,1709074277329,-500.0,0.00023998,2]
[315485902,1709074277339,-500.0,0.00023998,2]
[315485903,1709074277348,-500.0,0.00023998,2]
[315485904,1709074277357,-500.0,0.00023998,2]
[315485905,1709074277367,-500.0,0.00023998,2]
[315485906,1709074277377,-500.0,0.00023998,2]
[315485907,1709074277386,-500.0,0.00023998,2]
[315485908,1709074277396,-500.0,0.00023998,2]
[315485909,1709074277407,-500.0,0.00023998,2]
[315485910,1709074277417,-500.0,0.00023998,2]
[315485911,1709074277427,-881.46,0.00023998,2]
[315485912,1709074277438,-500.0,0.00023998,2]
[315485913,1709074277448,-881.46,0.00023998,2]
[315485914,1709074277459,-500.0,0.00023998,2]
[315485915,1709074277469,-1068.05,0.00023998,2]
[315485916,1709074277591,-500.0,0.00023998,2]
[315485917,1709074277602,-881.46,0.00023998,2]
[315485918,1709074277616,-500.0,0.00023998,2]
[315485919,1709074277629,-1068.05,0.00023998,2]
[315485920,1709074277639,-881.46,0.00023998,2]
[315485921,1709074277650,-1068.05,0.00023998,2]
[315485922,1709074277660,-1068.05,0.00023998,2]
[315485923,1709074277672,-500.0,0.00023998,2]
[315485924,1709074277682,-500.0,0.00023998,2]
[315485925,1709074277692,-500.0,0.00023998,2]
[315485926,1709074277703,-500.0,0.00023998,2]
[315485927,1709074277713,-500.0,0.00023998,2]
[315485928,1709074277723,-500.0,0.00023998,2]
[315485929,1709074277733,-500.0,0.00023998,2]
[315485930,1709074277743,-500.0,0.00023998,2]
[315485931,1709074277754,-500.0,0.00023998,2]
[315485932,1709074277764,-376.60031488,0.00023998,2]
[315485933,1709074277773,-600.63,0.00023998,2]
[315485934,1709074277783,-600.63,0.00023998,2]
[315485935,1709074277793,-600.63,0.00023998,2]
[315485936,1709074277803,-600.63,0.00023998,2]
[315485937,1709074277813,-500.0,0.00023998,2]
[315485938,1709074277823,-500.0,0.00023998,2]
[315485939,1709074277833,-602.69201238,0.00023998,2]
[315485940,1709074277844,-500.0,0.00023998,2]
[315485941,1709074277855,-500.0,0.00023998,2]
[315485942,1709074277865,-500.0,0.00023998,2]
[315485943,1709074277875,-500.0,0.00023998,2]
[315485944,1709074277885,-629.51,0.00023998,2]
[315485945,1709074277895,-500.0,0.00023998,2]
[315485946,1709074277906,-500.0,0.00023998,2]
[315485947,1709074277915,-500.0,0.00023998,2]
[315485948,1709074277927,-500.0,0.00023998,2]
[315485949,1709074277938,-500.0,0.00023998,2]
[315485950,1709074277948,-500.0,0.00023998,2]
[315485951,1709074277958,-500.0,0.00023998,2]
[315485952,1709074277969,-500.0,0.00023998,2]
[315485953,1709074277979,-500.0,0.00023998,2]
[315485954,1709074277989,-500.0,0.00023998,2]
[315485955,1709074277999,-500.0,0.00023998,2]
[315485956,1709074278010,-500.0,0.00023998,2]
[315485957,1709074278020,-1284.24,0.00023998,2]
[315485958,1709074278031,-1284.24,0.00023998,2]
[315485959,1709074278040,-1284.24,0.00023998,2]
[315485960,1709074278050,-1284.24,0.00023998,2]
[315485961,1709074278060,-500.0,0.00023998,2]
[315485962,1709074278070,-500.0,0.00023998,2]
[315485963,1709074278081,-648.19,0.00023998,2]
[315485964,1709074278091,-500.0,0.00023998,2]
[315485965,1709074278101,-648.19,0.00023998,2]
[315485966,1709074278111,-648.19,0.00023998,2]
[315485967,1709074278121,-500.0,0.00023998,2]
[315485968,1709074278131,-648.19,0.00023998,2]
[315485969,1709074278140,-500.0,0.00023998,2]
[315485970,1709074278150,-500.0,0.00023998,2]
[315485971,1709074278160,-2084.99,0.00023998,2]
[315485972,1709074278170,-2084.99,0.00023998,2]
[315485973,1709074278180,-2084.99,0.00023998,2]
[315485974,1709074278191,-2084.99,0.00023998,2]
[315485975,1709074278202,-499.0,0.00023998,2]
[315485976,1709074278211,-500.0,0.00023998,2]
[315485977,1709074278221,-500.0,0.00023998,2]
[315485978,1709074278231,-500.0,0.00023998,2]
[315485979,1709074278240,-500.0,0.00023998,2]
[315485980,1709074278250,-500.0,0.00023998,2]
[315485981,1709074278259,-500.0,0.00023998,2]
[315485982,1709074278269,-500.0,0.00023998,2]
[315485983,1709074278279,-500.0,0.00023998,2]
[315485984,1709074278288,-374.05,0.00023998,2]
[315485985,1709074278297,-500.0,0.00023998,2]
[315485986,1709074278306,-500.0,0.00023998,2]
[315485987,1709074278315,-500.0,0.00023998,2]
[315485988,1709074278325,-2597.85,0.00023998,2]
[315485989,1709074278335,-2597.85,0.00023998,2]
[315485990,1709074278345,-2597.85,0.00023998,2]
[315485991,1709074278355,-500.0,0.00023998,2]
[315485992,1709074278364,-500.0,0.00023998,2]
[315485993,1709074278374,-500.0,0.00023998,2]
[315485994,1709074278384,-500.0,0.00023998,2]
[315485995,1709074278394,-500.0,0.00023998,2]
[315485996,1709074278404,-473.75239133,0.00023998,2]
[315485997,1709074278413,-779.48,0.00023998,2]
[315485998,1709074278423,-779.48,0.00023998,2]
[315485999,1709074278433,-779.48,0.00023998,2]
[315486000,1709074278443,-779.48,0.00023998,2]
[315486001,1709074278452,-500.0,0.00023998,2]
[315486002,1709074278462,-500.0,0.00023998,2]
[315486003,1709074278471,-500.0,0.00023998,2]
[315486004,1709074278480,-500.0,0.00023998,2]
[315486005,1709074278490,-500.0,0.00023998,2]
[315486006,1709074278500,-500.0,0.00023998,2]
[315486007,1709074278510,-500.0,0.00023998,2]
[315486008,1709074278519,-500.0,0.00023998,2]
[315486009,1709074278529,-500.0,0.00023998,2]
[315486010,1709074278539,-500.0,0.00023998,2]
[315486011,1709074278549,-500.0,0.00023998,2]
[315486012,1709074278558,-500.0,0.00023998,2]
[315486013,1709074278568,-500.0,0.00023998,2]
[315486014,1709074278577,-873.51,0.00023998,2]
[315486015,1709074278587,-873.51,0.00023998,2]
[315486016,1709074278597,-873.51,0.00023998,2]
[315486017,1709074278606,-500.0,0.00023998,2]
[315486018,1709074278617,-500.0,0.00023998,2]
[315486019,1709074278630,-500.0,0.00023998,2]
[315486020,1709074278640,-500.0,0.00023998,2]
[315486021,1709074278651,-500.0,0.00023998,2]
[315486022,1709074278660,-2000.09,0.00023998,2]
[315486023,1709074278671,-2000.09,0.00023998,2]
[315486024,1709074278680,-2000.09,0.00023998,2]
[315486025,1709074278690,-2000.09,0.00023998,2]
[315486026,1709074278705,-500.0,0.00023998,2]
[315486027,1709074278715,-500.0,0.00023998,2]
[315486028,1709074278725,-500.0,0.00023998,2]
[315486029,1709074278734,-500.0,0.00023998,2]
[315486030,1709074278744,-500.0,0.00023998,2]
[315486031,1709074278754,-500.0,0.00023998,2]
[315486032,1709074278763,-500.0,0.00023998,2]
[315486033,1709074278773,-858.44,0.00023998,2]
[315486034,1709074278783,-858.44,0.00023998,2]
[315486035,1709074278794,-858.44,0.00023998,2]
[315486036,1709074278804,-858.44,0.00023998,2]
[315486037,1709074278814,-500.0,0.00023998,2]
[315486038,1709074278824,-698.92,0.00023998,2]
[315486039,1709074278834,-500.0,0.00023998,2]
[315486040,1709074278845,-500.0,0.00023998,2]
[315486041,1709074278855,-698.92,0.00023998,2]
[315486042,1709074278865,-500.0,0.00023998,2]
[315486043,1709074278875,-500.0,0.00023998,2]
[315486044,1709074278885,-698.92,0.00023998,2]
[315486045,1709074278895,-500.0,0.00023998,2]